bitfinex/quotes_SOLUSD_20251126
["timestamp","ask_amount","ask_price","bid_price","bid_amount"]
[1764171774368,7.4118016,136.88,136.84,0.66]
[1764171774868,16.308864,136.89,136.84,8.0718016]
[1764171775065,24.4006656,136.89,136.84,0.66]
[1764171775269,24.4006656,136.89,136.85,0.66]
[1764171775463,7.4118016,136.87,136.83,25.57918584]
[1764171775684,7.4118016,136.87,136.83,26.23918584]
[1764171775971,8.0918016,136.88,136.84,0.66]
[1764171776474,8.0918016,136.88,136.85,7.30727073]
[1764171778758,15.39759233,136.88,136.84,7.96755673]
[1764171778973,7.4118016,136.86,136.82,10.56875991]
[1764171779284,0.68,136.87,136.82,10.56875991]
[1764171779285,8.0918016,136.87,136.83,0.66]
[1764171780151,8.0918016,136.87,136.84,7.30780473]
[1764171780354,0.68,136.87,136.84,14.71960633]
[1764171780555,26.87421909,136.89,136.85,3.7748326]
[1764171780766,27.55421909,136.89,136.85,3.7748326]
[1764171780973,26.87421909,136.89,136.85,3.7748326]
[1764171781171,0.68,136.88,136.85,3.1148326]
[1764171781662,0.68,136.88,136.85,10.42196426]
[1764171781855,0.68,136.88,136.85,7.30713166]
[1764171782059,3.7948326,136.88,136.85,7.30713166]
[1764171782478,3.7948326,136.87,136.83,7.30790817]
[1764171782672,3.1148326,136.87,136.83,7.30790817]
[1764171782977,3.1148326,136.87,136.84,0.66]
[1764171783278,3.1148326,136.88,136.84,0.66]
[1764171783478,3.7948326,136.88,136.84,0.66]
[1764171783769,3.1148326,136.88,136.85,7.30727073]
[1764171784277,19.568864,136.89,136.85,7.96727073]
[1764171784571,23.3636966,136.89,136.85,7.96727073]
[1764171784777,30.66885633,136.89,136.85,7.96727073]
[1764171786077,3.1148326,136.87,136.84,7.30755106]
[1764171786574,3.1148326,136.87,136.84,8.02755106]
[1764171786774,3.7848326,136.86,136.83,61.9]
[1764171786947,8.80994492,136.83,136.77,3.8348326]
[1764171787154,16.308864,136.81,136.77,0.72]
[1764171787445,16.308864,136.81,136.77,8.03143816]
[1764171787650,3.7848326,136.8,136.77,7.31143816]
[1764171787869,3.1148326,136.79,136.76,7.31186601]
[1764171788092,3.1148326,136.79,136.76,0.72]
[1764171788261,3.1148326,136.79,136.77,0.72]
[1764171788455,19.4236966,136.8,136.77,0.72]
[1764171789164,3.1148326,136.78,136.75,8.03261425]
[1764171789780,3.1148326,136.77,136.74,7.31294856]
[1764171790168,3.1148326,136.77,136.74,8.03294856]
[1764171790479,3.1148326,136.81,136.76,3.1148326]
[1764171790703,16.308864,136.8,136.76,12.92730323]
[1764171790867,16.308864,136.8,136.77,0.72]
[1764171791187,16.308864,136.8,136.78,12.92730323]
[1764171791363,32.49616723,136.82,136.78,12.92730323]
[1764171791563,33.16616723,136.82,136.78,13.64730323]
[1764171791761,19.568864,136.82,136.78,12.92730323]
[1764171791980,7.97634439,136.87,136.82,7.30887297]
[1764171792179,16.85730323,136.86,136.82,7.30887297]
[1764171792896,16.308864,136.85,136.81,20.2366861]
[1764171793228,29.90616723,136.85,136.78,3.26]
[1764171793513,16.11628931,136.87,136.79,0.72]
[1764171793514,16.308864,136.82,136.79,0.72]
[1764171793695,16.308864,136.82,136.79,13.64730323]
[1764171793903,8.80994492,136.85,136.81,12.92730323]
[1764171794206,13.63730323,136.84,136.79,12.92730323]
[1764171794391,12.92730323,136.82,136.79,0.67]
[1764171794991,0.71,136.86,136.8,16.18730323]
[1764171795189,12.92730323,136.85,136.8,16.18730323]
[1764171795387,12.92730323,136.85,136.8,3.93]
[1764171795589,13.63730323,136.84,136.8,3.93]
[1764171795886,12.92730323,136.84,136.8,3.93]
[1764171796087,12.92730323,136.84,136.81,7.97896923]
[1764171800013,16.89730323,136.85,136.81,7.97896923]
[1764171800212,3.26,136.85,136.82,0.67]
[1764171800398,38.04611215,136.86,136.82,0.67]
[1764171800719,19.568864,136.87,136.83,7.30833881]
[1764171800912,16.18730323,136.87,136.83,7.30833881]
[1764171801118,16.18730323,136.87,136.84,0.67]
[1764171801322,12.92730323,136.87,136.84,0.67]
[1764171801618,12.92730323,136.87,136.8,65.16]
[1764171801619,13.63730323,136.86,136.81,7.9794072]
[1764171801819,12.92730323,136.85,136.81,7.9794072]
[1764171801993,12.92730323,136.85,136.82,0.67]
[1764171802195,16.89730323,136.86,136.82,0.67]
[1764171802797,16.89730323,136.86,136.83,7.30833881]
[1764171804222,13.63730323,136.85,136.8,78.75730323]
[1764171804427,12.92730323,136.84,136.8,3.26]
[1764171804591,0.71,136.83,136.8,10.56985135]
[1764171804795,13.63730323,136.83,136.8,7.30985135]
[1764171805023,12.92730323,136.83,136.8,7.97985135]
[1764171805719,13.63730323,136.83,136.8,7.30985135]
[1764171807203,12.92730323,136.82,136.8,7.30985135]
[1764171807703,3.97,136.83,136.8,7.30985135]
[1764171807704,16.18730323,136.83,136.8,7.30985135]
[1764171808220,16.89730323,136.83,136.8,7.30985135]
[1764171808408,16.89730323,136.83,136.79,7.31047591]
[1764171808608,16.89730323,136.83,136.79,7.98047591]
[1764171809529,3.97,136.83,136.79,7.98047591]
[1764171809834,16.89730323,136.83,136.79,7.98047591]
[1764171810217,3.26,136.83,136.79,38.51396891]
[1764171810422,3.97,136.83,136.79,39.18396891]
[1764171810917,0.71,136.82,136.76,0.14216157]
[1764171811122,9.09426806,136.86,136.76,0.67]
[1764171811324,12.92730323,136.81,136.76,3.93]
[1764171811520,12.92730323,136.79,136.76,3.93]
[1764171811705,8.80994492,136.76,136.71,13.59730323]
[1764171811907,12.92730323,136.75,136.71,0.67]
[1764171812228,8.80994492,136.77,136.71,0.67]
[1764171812229,12.92730323,136.74,136.71,0.67]
[1764171812608,13.68670476,136.76,136.71,0.67]
[1764171812825,5.58675984,136.75,136.71,0.67]
[1764171813003,5.58675984,136.75,136.71,7.98453283]
[1764171813498,0.71,136.75,136.71,0.67]
[1764171813699,8.80994492,136.76,136.72,0.67]
[1764171814015,24.44562384,136.8,136.75,4.87675984]
[1764171814536,25.15562384,136.8,136.75,4.87675984]
[1764171814726,14.39670476,136.79,136.74,4.87675984]
[1764171815046,14.39670476,136.79,136.74,5.54675984]
[1764171815226,4.87675984,136.77,136.72,0.67]
[1764171815536,4.87675984,136.77,136.71,15.45149419]
[1764171815537,28.37880892,136.77,136.71,15.45149419]
[1764171815744,13.68670476,136.76,136.72,12.86051358]
[1764171815943,25.15562384,136.77,136.72,31.14606068]
[1764171816353,0.71,136.76,136.72,31.14606068]
[1764171816654,0.71,136.76,136.72,39.20466578]
[1764171816952,12.93536494,136.78,136.73,13.60536494]
[1764171817317,13.64536494,136.78,136.74,0.67]
[1764171817751,13.64536494,136.78,136.74,7.98268762]
[1764171817921,22.45530986,136.77,136.73,7.31357171]
[1764171818120,22.45530986,136.77,136.73,7.98357171]
[1764171819243,26.8795506,136.79,136.74,0.67]
[1764171819449,12.93536494,136.78,136.74,0.67]
[1764171819631,13.64536494,136.78,136.74,0.67]
[1764171819947,13.64536494,136.77,136.73,25.59778146]
[1764171820128,12.93536494,136.77,136.74,0.67]
[1764171820449,22.45530986,136.78,136.74,0.67]
[1764171820827,0.71,136.77,136.73,20.24893665]
[1764171821029,0.71,136.84,136.77,7.31154492]
[1764171821342,8.80994492,136.84,136.8,12.93536494]
[1764171821543,29.24422894,136.85,136.78,3.93]
[1764171821746,29.95422894,136.85,136.8,12.93536494]
[1764171821922,13.64536494,136.85,136.8,12.93536494]
[1764171822126,29.95422894,136.85,136.8,13.60536494]
[1764171822357,12.06994492,136.86,136.81,0.67]
[1764171822358,3.26,136.86,136.81,0.67]
[1764171822667,8.80994492,136.85,136.83,12.93536494]
[1764171823022,8.80994492,136.86,136.82,20.24423791]
[1764171823223,8.80994492,136.86,136.82,20.91423791]
[1764171823461,8.80994492,136.84,136.81,7.30918946]
[1764171824055,8.80994492,136.84,136.81,7.97918946]
[1764171824348,8.80994492,136.84,136.81,20.9145544]
[1764171824554,8.80994492,136.84,136.81,7.30918946]
[1764171825155,8.80994492,136.84,136.81,8.00918946]
[1764171825330,8.80994492,136.84,136.8,7.30977868]
[1764171825331,29.71340561,136.84,136.8,7.30977868]
[1764171825530,8.80994492,136.82,136.8,0.7]
[1764171825772,8.80994492,136.83,136.8,13.63536494]
[1764171826128,9.46994492,136.83,136.79,82.14574212]
[1764171826350,8.80994492,136.83,136.8,12.93536494]
[1764171826730,8.80994492,136.83,136.8,13.63536494]
[1764171826932,0.66,136.82,136.74,16.308864]
[1764171827238,0.66,136.82,136.75,0.7]
[1764171827239,12.93536494,136.78,136.75,0.7]
[1764171827437,8.80994492,136.77,136.75,0.7]
[1764171827635,21.74530986,136.77,136.73,0.7]
[1764171827851,8.80994492,136.75,136.73,0.7]
[1764171828242,8.80994492,136.75,136.71,3.96]
[1764171828439,8.80994492,136.75,136.72,0.7]
[1764171828743,0.56,136.78,136.72,0.7]
[1764171828923,8.80994492,136.76,136.72,13.63536494]
[1764171829127,8.80994492,136.77,136.73,38.53325859]
[1764171829344,8.80994492,136.77,136.73,39.23325859]
[1764171829560,8.80994492,136.77,136.74,0.7]
[1764171830956,21.74530986,136.78,136.74,0.7]
[1764171831128,21.74530986,136.78,136.75,7.31261425]
[1764171831335,21.74530986,136.78,136.74,8.01301364]
[1764171832360,12.93536494,136.77,136.74,8.01301364]
[1764171833331,21.74530986,136.78,136.75,0.7]
[1764171833663,16.308864,136.78,136.75,0.7]
[1764171834030,12.93536494,136.79,136.75,0.7]
[1764171834226,25.11880892,136.79,136.76,7.31207955]
[1764171834637,38.05417386,136.79,136.76,8.01207955]
[1764171834840,8.80994492,136.77,136.75,7.3124471]
[1764171835128,21.74530986,136.77,136.74,10.57291671]
[1764171835343,21.74530986,136.77,136.75,0.7]
[1764171836143,21.74530986,136.78,136.75,0.7]
[1764171836945,12.93536494,136.77,136.75,0.7]
[1764171837148,12.93536494,136.77,136.74,10.57291671]
[1764171837354,12.93536494,136.77,136.74,11.27291671]
[1764171837565,12.93536494,136.77,136.74,10.57291671]
[1764171837860,12.93536494,136.77,136.74,11.27291671]
[1764171838167,12.93536494,136.77,136.74,8.01291671]
[1764171838551,12.93536494,136.77,136.74,69.91291671]
[1764171839667,12.93536494,136.77,136.75,0.7]
[1764171839962,12.93536494,136.77,136.75,8.0125774]
[1764171840435,8.80994492,136.78,136.75,7.3125774]
[1764171840436,21.74530986,136.78,136.75,7.3125774]
[1764171840777,8.80994492,136.78,136.76,0.7]
[1764171841347,16.308864,136.79,136.76,0.7]
[1764171841943,16.308864,136.79,136.76,8.01168221]
[1764171842166,8.80994492,136.79,136.77,0.7]
[1764171842546,8.80994492,136.77,136.72,0.7]
[1764171842748,38.05417386,136.77,136.73,0.7]
[1764171843966,8.80994492,136.75,136.73,0.7]
[1764171844140,21.74530986,136.75,136.73,0.7]
[1764171844344,12.93536494,136.74,136.71,0.7]
[1764171844544,21.74530986,136.73,136.68,7.31635937]
[1764171844748,21.74530986,136.73,136.7,0.7]
[1764171845353,8.80994492,136.73,136.7,0.7]
[1764171846161,8.80994492,136.73,136.71,7.31475385]
[1764171846372,8.80994492,136.73,136.71,7.13695385]
[1764171847854,8.80994492,136.73,136.71,7.84695385]
[1764171848580,18.83675229,136.79,136.72,0.71]
[1764171848778,8.80994492,136.77,136.72,0.71]
[1764171848955,8.80994492,136.77,136.72,13.64536494]
[1764171849158,21.74530986,136.77,136.72,13.64536494]
[1764171849354,21.74530986,136.77,136.73,0.71]
[1764171849556,8.80994492,136.77,136.73,0.71]
[1764171849981,8.80994492,136.77,136.74,7.31314904]
[1764171850480,8.80994492,136.77,136.75,0.71]
[1764171850701,7.42806488,136.8,136.75,0.71]
[1764171850854,8.80994492,136.79,136.75,0.71]
[1764171851055,8.80994492,136.79,136.75,8.13806488]
[1764171851351,10.68806488,136.81,136.75,8.13806488]
[1764171851576,8.80994492,136.8,136.76,0.71]
[1764171852283,8.80994492,136.8,136.77,7.31154492]
[1764171852492,8.80994492,136.77,136.71,61.9]
[1764171852664,7.42806488,136.75,136.71,69.92471976]
[1764171852982,7.42806488,136.74,136.71,69.92471976]
[1764171853184,7.42806488,136.74,136.72,0.71]
[1764171853557,7.42806488,136.74,136.7,7.31515703]
[1764171853758,16.2380098,136.75,136.7,8.02515703]
[1764171853953,16.2380098,136.75,136.71,0.71]
[1764171854680,16.2380098,136.75,136.71,8.02463071]
[1764171854864,8.80994492,136.75,136.71,8.02463071]
[1764171855063,8.80994492,136.75,136.69,10.68806488]
[1764171855064,16.2380098,136.73,136.69,3.92]
[1764171855260,8.80994492,136.74,136.7,8.08806488]
[1764171855671,8.80994492,136.74,136.71,0.66]
[1764171856387,8.80994492,136.74,136.72,7.31421884]
[1764171856571,16.2380098,136.74,136.72,7.31421884]
[1764171857263,16.2380098,136.74,136.72,7.97421884]
[1764171858302,32.5468738,136.75,136.72,0.66]
[1764171858494,32.5468738,136.75,136.72,7.97410249]
[1764171858874,7.42806488,136.74,136.72,7.97410249]
[1764171859077,7.42806488,136.74,136.71,7.97451593]
[1764171859487,7.42806488,136.74,136.72,0.66]
[1764171859783,25.11880892,136.75,136.72,0.66]
[1764171860094,32.5468738,136.75,136.72,0.66]
[1764171860391,7.42806488,136.74,136.73,7.3136839]
[1764171860571,32.5468738,136.75,136.73,7.3136839]
[1764171860779,32.5468738,136.75,136.72,7.97400114]
[1764171862468,32.5468738,136.75,136.73,0.66]
[1764171863327,25.11880892,136.75,136.73,0.66]
[1764171863509,25.11880892,136.75,136.68,0.66]
[1764171863510,7.42806488,136.74,136.68,0.66]
[1764171863790,8.80994492,136.7,136.68,0.66]
[1764171864491,16.2380098,136.7,136.68,0.66]
[1764171865189,8.80994492,136.68,136.67,0.2]
[1764171866173,7.42806488,136.68,136.67,0.2]
[1764171866988,8.80994492,136.69,136.67,0.86]
[1764171867191,8.80994492,136.69,136.67,0.2]
[1764171867606,16.2380098,136.69,136.67,0.2]
[1764171868102,0.56,136.69,136.67,0.2]
[1764171868313,7.42806488,136.68,136.67,0.2]
[1764171868472,10.68806488,136.68,136.67,0.2]
[1764171868672,11.24806488,136.68,136.67,0.2]
[1764171869079,18.56442425,136.68,136.67,0.2]
[1764171869680,18.00442425,136.68,136.67,0.2]
[1764171870080,10.68806488,136.68,136.67,0.2]
[1764171871992,16.868864,136.72,136.67,8.1768947]
[1764171872193,8.80994492,136.69,136.67,8.1768947]
[1764171872395,16.2380098,136.69,136.67,0.86]
[1764171872599,19.4980098,136.68,136.67,0.2]
[1764171873347,27.37436917,136.68,136.67,0.2]
[1764171873527,19.4980098,136.68,136.67,0.2]
[1764171874224,27.37436917,136.68,136.67,0.2]
[1764171876527,19.4980098,136.68,136.67,0.2]
[1764171876713,16.308864,136.69,136.67,0.86]
[1764171877039,8.80994492,136.68,136.67,0.2]
[1764171877210,16.308864,136.69,136.67,8.1768947]
[1764171877407,7.42806488,136.73,136.67,18.86495958]
[1764171877612,7.42806488,136.73,136.68,0.66]
[1764171877921,16.2380098,136.71,136.68,0.66]
[1764171878320,16.308864,136.68,136.67,0.2]
[1764171878632,32.5468738,136.68,136.67,0.2]
[1764171878828,8.80994492,136.68,136.67,0.86]
[1764171879213,16.2380098,136.68,136.67,0.86]
[1764171879408,16.2380098,136.68,136.67,0.2]
[1764171880022,23.55436917,136.68,136.67,0.2]
[1764171880210,16.2380098,136.68,136.67,0.2]
[1764171880530,23.55436917,136.68,136.67,0.2]
[1764171882608,16.2380098,136.68,136.67,0.2]
[1764171883343,8.80994492,136.68,136.67,8.1768947]
[1764171883635,16.308864,136.69,136.67,8.1768947]
[1764171883836,32.5468738,136.69,136.68,0.66]
[1764171884045,9.36994492,136.68,136.67,0.2]
[1764171884336,19.5580098,136.68,136.67,0.2]
[1764171884537,36.15119694,136.68,136.67,0.2]
[1764171885234,35.3068738,136.68,136.67,0.2]
[1764171885624,43.18323317,136.68,136.67,0.2]
[1764171887238,8.80994492,136.71,136.67,0.2]
[1764171887431,7.42806488,136.68,136.67,0.2]
[1764171887632,23.73692888,136.68,136.67,0.2]
[1764171888361,16.2380098,136.69,136.67,7.51686685]
[1764171888640,16.2380098,136.69,136.67,8.18686685]
[1764171888830,8.80994492,136.71,136.67,7.51686685]
[1764171889033,8.80994492,136.71,136.68,0.67]
[1764171889034,8.80994492,136.7,136.68,0.67]
[1764171889537,16.2380098,136.7,136.68,0.67]
[1764171890235,16.2380098,136.7,136.68,7.98627974]
[1764171890439,8.80994492,136.68,136.67,0.2]
[1764171890628,16.2380098,136.68,136.67,0.2]
[1764171891941,8.80994492,136.68,136.67,8.1868947]
[1764171892247,8.80994492,136.69,136.67,0.87]
[1764171892439,8.80994492,136.69,136.68,0.67]
[1764171892739,7.31493884,136.71,136.68,0.67]
[1764171892740,16.2380098,136.71,136.68,0.67]
[1764171893526,7.42806488,136.7,136.68,0.67]
[1764171893748,23.73692888,136.69,136.67,0.1]
[1764171893938,23.73692888,136.69,136.65,0.1]
[1764171893939,16.308864,136.66,136.65,0.1]
[1764171894128,35.8268738,136.66,136.65,0.1]
[1764171894321,36.57119694,136.66,136.65,0.1]
[1764171896326,43.88862705,136.66,136.65,0.1]
[1764171897124,9.09426806,136.65,136.64,0.1]
[1764171897323,8.80994492,136.61,136.6,0.1]
[1764171897531,12.08994492,136.61,136.6,0.1]
[1764171897732,19.5180098,136.61,136.6,0.1]
[1764171899220,12.08994492,136.61,136.6,0.1]
[1764171899424,27.58244127,136.61,136.6,0.1]
[1764171900240,19.5180098,136.61,136.6,0.1]
[1764171900439,26.83811813,136.61,136.6,0.1]
[1764171901028,27.12244127,136.61,136.6,0.1]
[1764171901231,25.11880892,136.58,136.57,0.1]
[1764171901441,25.11880892,136.55,136.54,0.1]
[1764171901758,35.8268738,136.55,136.54,0.1]
[1764171901948,36.0868738,136.55,136.54,0.1]
[1764171902328,43.15019858,136.55,136.54,0.1]
[1764171903158,43.43452172,136.55,136.54,0.1]
[1764171904137,43.69452172,136.55,136.54,0.1]
[1764171904757,9.09426806,136.54,136.53,1e-08]
[1764171905072,8.80994492,136.5,136.48,0.1]
[1764171905239,16.2380098,136.49,136.48,0.1]
[1764171905561,19.5180098,136.49,136.48,0.77]
[1764171905770,19.5180098,136.49,136.48,0.1]
[1764171906073,19.80233294,136.49,136.48,0.1]
[1764171906238,43.597741,136.49,136.48,0.1]
[1764171907362,34.71694188,136.49,136.48,0.1]
[1764171907736,27.288877,136.49,136.48,0.1]
[1764171908461,34.71694188,136.49,136.48,0.1]
[1764171908965,27.288877,136.49,136.48,0.1]
[1764171910159,26.98671543,136.49,136.48,0.1]
[1764171910354,32.5468738,136.49,136.48,0.1]
[1764171910551,7.324781,136.53,136.48,0.78]
[1764171910751,7.42806488,136.49,136.48,0.78]
[1764171911146,8.80994492,136.49,136.48,0.1]
[1764171911351,16.2380098,136.49,136.48,0.1]
[1764171911843,8.80994492,136.49,136.48,0.1]
[1764171912162,16.308864,136.51,136.48,0.1]
[1764171912163,0.16,136.57,136.48,0.78]
[1764171912364,3.28,136.56,136.49,7.32654406]
[1764171912554,12.98245734,136.52,136.49,7.32654406]
[1764171912753,12.98245734,136.5,136.48,0.78]
[1764171912956,12.98245734,136.5,136.49,0.68]
[1764171913262,3.28,136.52,136.49,0.68]
[1764171913564,12.98245734,136.5,136.49,0.68]
[1764171914155,3.28,136.52,136.49,0.68]
[1764171914353,12.98245734,136.5,136.49,0.68]
[1764171915772,21.79240226,136.5,136.48,0.1]
[1764171915946,8.80994492,136.5,136.49,0.72]
[1764171916147,8.80994492,136.57,136.49,0.72]
[1764171916344,8.80994492,136.55,136.49,8.04627612]
[1764171916566,12.98245734,136.51,136.49,8.04627612]
[1764171916753,12.98245734,136.5,136.48,0.1]
[1764171916952,12.98245734,136.49,136.48,0.1]
[1764171917149,12.98245734,136.49,136.48,0.82]
[1764171917367,12.98245734,136.49,136.48,0.1]
[1764171917368,21.79240226,136.49,136.48,0.1]
[1764171917555,8.80994492,136.49,136.48,0.1]
[1764171917888,21.79240226,136.49,136.48,0.1]
[1764171918171,8.80994492,136.49,136.48,0.1]
[1764171918404,29.11894632,136.49,136.48,0.1]
[1764171918951,21.79240226,136.49,136.48,0.1]
[1764171919469,0.16,136.57,136.48,0.82]
[1764171919683,8.80994492,136.55,136.48,0.82]
[1764171920097,25.11880892,136.55,136.48,0.82]
[1764171920276,12.98245734,136.53,136.48,0.82]
[1764171920478,12.98245734,136.51,136.48,0.82]
[1764171920700,8.80994492,136.52,136.48,8.14705194]
[1764171920877,12.98245734,136.51,136.48,0.82]
[1764171921078,12.98245734,136.51,136.49,0.72]
[1764171921279,12.98245734,136.5,136.48,0.1]
[1764171921474,12.98245734,136.49,136.48,0.82]
[1764171921708,16.26245734,136.5,136.48,0.82]
[1764171922085,12.98245734,136.51,136.48,8.1470065]
[1764171922483,12.98245734,136.51,136.49,0.72]
[1764171922676,12.98245734,136.5,136.48,0.82]
[1764171923077,19.41496676,136.52,136.48,0.82]
[1764171923283,12.98245734,136.5,136.48,0.82]
[1764171923687,12.98245734,136.49,136.48,0.1]
[1764171923888,12.98245734,136.49,136.48,0.82]
[1764171924295,12.98245734,136.5,136.48,0.82]
[1764171924823,12.98245734,136.5,136.47,0.1]
[1764171924824,32.57132134,136.49,136.47,0.1]
[1764171924980,21.79240226,136.48,136.47,0.1]
[1764171925177,21.79240226,136.48,136.47,0.82]
[1764171925375,12.98245734,136.49,136.47,0.82]
[1764171925585,25.07240226,136.49,136.47,0.82]
[1764171925818,12.98245734,136.48,136.47,0.82]
[1764171926185,25.07240226,136.49,136.47,0.82]
[1764171927080,3.28,136.49,136.47,0.82]
[1764171927280,16.26245734,136.5,136.47,8.14751109]
[1764171927509,16.26245734,136.5,136.48,0.72]
[1764171927810,12.98245734,136.49,136.48,0.72]
[1764171929283,12.98245734,136.49,136.47,0.1]
[1764171929284,21.79240226,136.49,136.47,0.1]
[1764171929487,12.98245734,136.48,136.47,0.82]
[1764171930006,12.98245734,136.48,136.47,0.1]
[1764171930307,21.79240226,136.48,136.47,0.1]
[1764171930605,29.11948315,136.48,136.47,0.1]
[1764171932202,21.79240226,136.48,136.47,0.1]
[1764171932413,29.11948315,136.48,136.47,0.1]
[1764171932706,21.79240226,136.48,136.47,0.1]
[1764171933130,29.11948315,136.48,136.47,0.1]
[1764171933685,16.26245734,136.48,136.47,0.82]
[1764171934283,12.98245734,136.49,136.47,0.82]
[1764171934485,16.26245734,136.5,136.47,0.82]
[1764171934682,3.28,136.5,136.48,7.32708089]
[1764171935000,3.28,136.5,136.47,0.82]
[1764171935001,12.98245734,136.49,136.47,0.82]
[1764171935915,12.98245734,136.48,136.47,0.82]
[1764171936789,21.79240226,136.49,136.47,0.82]
[1764171937306,12.98245734,136.48,136.47,0.82]
[1764171937607,3.28,136.5,136.47,0.82]
[1764171937827,32.57132134,136.51,136.47,8.14754237]
[1764171938120,12.98245734,136.5,136.48,0.72]
[1764171938472,12.98245734,136.49,136.47,0.1]
[1764171938593,12.98245734,136.48,136.47,0.1]
[1764171938796,12.98245734,136.49,136.47,0.82]
[1764171939316,12.98245734,136.48,136.47,0.1]
[1764171939487,12.08994492,136.48,136.47,0.1]
[1764171939818,25.07240226,136.48,136.47,0.1]
[1764171940503,41.38126626,136.48,136.47,0.1]
[1764171940707,41.44126626,136.48,136.47,0.1]
[1764171940911,25.13240226,136.48,136.38,0.72]
[1764171941126,12.98245734,136.4,136.38,0.72]
[1764171941418,12.98245734,136.4,136.39,0.72]
[1764171942222,12.98245734,136.41,136.39,0.72]
[1764171942419,12.98245734,136.4,136.39,0.72]
[1764171942629,12.98245734,136.4,136.39,0.22]
[1764171944236,12.98245734,136.4,136.35,7.33374626]
[1764171944537,3.28,136.42,136.35,25.66891311]
[1764171944538,12.98245734,136.39,136.35,25.66891311]
[1764171944723,3.28,136.42,136.36,0.7]
[1764171944905,12.98245734,136.39,136.36,0.7]
[1764171945108,3.28,136.42,136.37,7.33299112]
[1764171945341,12.98245734,136.41,136.37,7.33299112]
[1764171945544,12.98245734,136.4,136.38,0.7]
[1764171945834,10.61037333,136.42,136.38,0.7]
[1764171946130,12.98245734,136.4,136.38,0.7]
[1764171947127,12.98245734,136.39,136.38,0.7]
[1764171947511,12.98245734,136.4,136.38,0.7]
[1764171948128,25.07240226,136.39,136.35,0.7]
[1764171948330,12.98245734,136.37,136.35,0.7]
[1764171948538,12.98245734,136.36,136.35,0.7]
[1764171948743,28.89880892,136.39,136.35,0.7]
[1764171948744,12.98245734,136.38,136.35,0.7]
[1764171949039,12.98245734,136.37,136.35,0.7]
[1764171949412,12.98245734,136.38,136.35,8.03401358]
[1764171949612,16.26245734,136.38,136.36,0.7]
[1764171949912,7.33140199,136.4,136.36,0.7]
[1764171949913,3.28,136.4,136.36,0.7]
[1764171950114,12.98245734,136.39,136.36,0.7]
[1764171951018,12.98245734,136.39,136.36,8.03307366]
[1764171951725,16.26245734,136.4,136.37,0.7]
[1764171952916,16.26245734,136.4,136.37,8.03270241]
[1764171953459,16.26245734,136.4,136.38,0.7]
[1764171954147,12.98245734,136.39,136.38,0.7]
[1764171954323,12.98245734,136.39,136.36,0.7]
[1764171954526,4.90295338,136.38,136.36,0.7]
[1764171955640,3.28,136.4,136.36,8.03338893]
[1764171955842,13.7128983,136.39,136.36,8.03338893]
[1764171956056,13.7128983,136.39,136.37,0.7]
[1764171956424,4.90295338,136.38,136.36,7.33338893]
[1764171956738,8.80994492,136.39,136.36,0.7]
[1764171956918,4.90295338,136.38,136.36,0.7]
[1764171957535,4.90295338,136.37,136.36,0.7]
[1764171957936,16.14196337,136.39,136.36,0.7]
[1764171958250,4.90295338,136.37,136.36,0.7]
[1764171959354,17.4928983,136.37,136.34,0.1]
[1764171959522,4.90295338,136.35,136.34,0.1]
[1764171960629,30.5217623,136.35,136.34,0.1]
[1764171960830,30.0217623,136.35,136.34,0.1]
[1764171961339,37.35582904,136.35,136.34,0.1]
[1764171961560,37.85582904,136.35,136.34,0.1]
[1764171961943,37.35582904,136.35,136.34,0.1]
[1764171962141,32.45287566,136.35,136.34,0.1]
[1764171962350,30.0217623,136.35,136.34,0.1]
[1764171963158,33.3017623,136.35,136.34,0.1]
[1764171963330,40.63582904,136.35,136.34,0.1]
[1764171963731,40.63582904,136.35,136.33,0.1]
[1764171963732,25.11880892,136.34,136.33,0.1]
[1764171963932,21.49471586,136.34,136.33,0.1]
[1764171964161,4.90295338,136.28,136.27,0.7]